Cogmind - Beta 16 @@@ ROGUE MODE // 2025.12.28 @ 22:13:42 Player: Art Result: Destroyed by Y-45 Defender with Heavy Assault Rifle Performance ------------- Evolutions (1) 500 Regions Visited (2) 400 Robots Destroyed (7) 35 Value Destroyed (172) 172 Prototype IDs (2) 40 Alien Tech Used (0) 0 Bonus (0) 0 TOTAL SCORE: 1147 Bonus ------- None Cogmind --------- Core Integrity 0/400 Matter 400/400 Energy 100/100 System Corruption 3% Temperature Cool (9) Movement Core (50) Location -9/Materials Parts ------- > --- POWER (2) -------- (None) > --- PROPULSION (3) --- (None) > --- UTILITY (2) ------ Medium Matter Pod > --- WEAPON (2) ------- (None) > --- INVENTORY (5) ---- Medium Storage Unit Advanced Beam Cannon Peak State ------------ > --- POWER ------------ Ion Engine > --- PROPULSION ------- Aluminum Leg Aluminum Leg > --- UTILITY ---------- Small Storage Unit Medium Matter Pod > --- WEAPON ----------- Beam Rifle Beam Rifle > --- INVENTORY -------- EM Pulse Gun Assault Rifle [Rating: 9] Favorites ----------- Power Ion Engine Engine Ion Engine Propulsion Aluminum Leg Leg Aluminum Leg Utility Small Storage Unit Storage Small Storage Unit Weapon Beam Rifle Energy Gun Beam Rifle Ballistic Gun Assault Rifle Impact Weapon Hammer Build | -11 -10 -9 ------- Run | Yrd Mat Mat Slots Evolved 2 | . . 2 Power 1 | . . 1 Propulsion 1 | . . 1 Utility . | . . . Weapon . | . . . Parts Attached 12 | 6 4 2 Power 1 | 1 . . Engine 1 | 1 . . Core . | . . . Reactor . | . . . Propulsion 2 | 2 . . Treads . | . . . Leg 2 | 2 . . Wheel . | . . . Hover . | . . . Flight . | . . . Utility 3 | 1 2 . Device . | . . . Storage 3 | 1 2 . Processor . | . . . Hackware . | . . . Protection . | . . . Artifact . | . . . Weapon 6 | 2 2 2 Energy Gun 3 | 1 2 . Energy Cannon . | . . . Ballistic Gun 2 | 1 . 1 Ballistic Cannon . | . . . Launcher . | . . . Special Weapon . | . . . Impact Weapon 1 | . . 1 Slashing Weapon . | . . . Piercing Weapon . | . . . Special Melee Weapon . | . . . Unidentified Prototypes . | . . . Parts Lost 9 | . . 9 Power 1 | . . 1 Propulsion 2 | . . 2 Utility 1 | . . 1 Weapon 5 | . . 5 Highest Loss Streak 8 | . . 8 To Critical Strikes . | . . . Average Backups 2 | . 2 3 Power . | . . . Propulsion . | . . . Utility . | . . 1 Weapon 1 | . 1 2 Tool/Special . | . . . Unused Backups 1 | . . 1 Power . | . . . Propulsion . | . . . Utility . | . . . Weapon 1 | . . 1 Tool/Special . | . . . Average Slot Usage (%) 77 | . 91 58 Engine 11 | . 14 6 Leg 22 | . 28 15 Storage 19 | . 19 20 Energy Gun 20 | . 24 14 Ballistic Gun 2 | . 3 1 Peak Build Rating 9 | 6 9 9 Average Rating 7 | 4 8 6 On Entrance 5 | . 6 9 Avg Prop Armor Cover (%) 21 | 21 . . Naked Turns . | . . . Heaviest Build 18 | 14 18 18 Greatest Support 20 | 3 20 20 Greatest Overweight (x) 4 | 4 . 2 Average Overweight (x) . | 2 . . Largest Inventory Capacity 10 | 8 10 8 Average Capacity 7 | 7 7 7 Most Carried 5 | 2 5 4 Average Carried 2 | . 1 3 Final Capacity 8 | 8 8 5 Final Carried 4 | . 4 2 Class Distribution -------------------- 100% | Mutant Dominant Class ---------------- Mutant | -10/Materials Mutant | -9/Materials Resources | -11 -10 -9 ----------- Run | Yrd Mat Mat Matter Collected 424 | 260 164 . Remotely . | . . . Salvage Created 184 | . 46 138 Parts 16 | . 8 8 Haulers Intercepted . | . . . Recyclers Shooed . | . . . Parts Field Recycled . | . . . Retrieved Matter . | . . . Parts Self-Destructed . | . . . Prevented . | . . . Parts Restored . | . . . Kills | -11 -10 -9 ------- Run | Yrd Mat Mat Combat Hostiles Destroyed 6 | . 3 3 Guns 6 | . 3 3 Classes Destroyed 5 | . 2 3 Watcher 1 | . 1 . Swarmer 3 | . 3 . Grunt 1 | . . 1 Duelist 1 | . . 1 Sentry 1 | . . 1 Best Kill Streak 3 | . 3 3 Combat Bots Only 3 | . 3 3 Max Kills in Single Turn 1 | . 1 1 Gunslinging . | . . . Exploded . | . . . Melee . | . . . Uniques/NPCs Destroyed . | . . . Combat | -11 -10 -9 -------- Run | Yrd Mat Mat Hostile Shots Fired 129 | . 8 121 Missed 44 | . 4 40 Hits 85 | . 4 81 Melee 5 | . . 5 Projectile 80 | . 4 76 Critical Strikes 3 | . . 3 Damage Taken 1207 | . 34 1173 Core 415 | . . 415 Absorbed by Shields . | . . . Core Remaining (%) 100 | 100 100 . Volleys Fired 20 | . 5 15 Largest 2 | . 2 2 Hottest 112 | . 112 112 Shots Fired 40 | . 10 30 Gun 40 | . 10 30 Cannon . | . . . Launcher . | . . . Special . | . . . Kinetic 11 | . 2 9 Thermal 24 | . 6 18 Explosive . | . . . Electromagnetic 5 | . 2 3 Robot Hit Streak 9 | . 2 9 Robot Miss Streak 3 | . 1 3 Penetration Max . | . . . Secondary Targets 2 | . 1 1 Max Gunslinging Chain 1 | . 1 1 Shots Hit Robots 27 | . 7 20 Core Hits 9 | . 4 5 Critical Kills . | . . . Critical Parts Destroyed . | . . . Critical Strikes 3 | . 1 2 Burn 3 | . 1 2 Melee Attacks . | . . . Impact . | . . . Slashing . | . . . Piercing . | . . . Sneak Attacks . | . . . Combat Hostiles . | . . . Follow-up Attacks . | . . . Damage Inflicted 438 | . 129 309 Guns 384 | . 92 292 Cannons . | . . . Explosions 24 | . 24 . Melee . | . . . Ramming 30 | . 13 17 Kinetic 88 | . . 88 Thermal 243 | . 82 161 Explosive . | . . . Electromagnetic 77 | . 34 43 Impact . | . . . Slashing . | . . . Piercing . | . . . Highest Corruption 3 | . 1 3 Average Corruption 1 | . 1 2 Corruption Purged . | . . . Corruption Blocked . | . . . Overload Shots . | . . . Overflow Damage . | . . . Projectiles . | . . . Explosions . | . . . Melee . | . . . Knockbacks . | . . . Impact . | . . . Kinetic . | . . . Secondary . | . . . Self-Inflicted Damage 6 | . . 6 Shots . | . . . Rammed 9 | . . 9 Targets Rammed 11 | . 2 9 Kicked 2 | . 2 . Crushed . | . . . Highest Temperature 184 | . 153 184 Average Temperature 90 | . 78 93 Received Heat Transfer 519 | . . 519 Siege Activations . | . . . Martial Activations . | . . . Shielding Activations . | . . . Robots Disrupted . | . . . Combat Hostiles . | . . . Robots Corrupted . | . . . Combat Hostiles . | . . . Parts Fried . | . . . Impact Corruptions . | . . . Robots Melted . | . . . Combat Hostiles . | . . . Parts Melted . | . . . Heat Transferred 827 | . 272 555 Parts Sabotaged . | . . . Parts Stolen . | . . . Parts Stripped . | . . . Power Chain Reactions 1 | . 1 . Alert | -11 -10 -9 ------- Run | Yrd Mat Mat Maximum Alert Level . | . . . Low Security (%) 100 | 100 100 100 Level 1 . | . . . Level 2 . | . . . Level 3 . | . . . Level 4 . | . . . Level 5 . | . . . High Security . | . . . Max Security . | . . . Peak Influence 70 | . 70 60 Initial 16 | . . 16 Average 8 | . 9 12 Influence Increases 228 | . 98 130 Destroy 0b10 Robot/C 120 | . 60 60 Destroy 0b10 Robot/NC 5 | . 5 . Destroy Leader 32 | . 12 20 Successful Hack 23 | . 18 5 Destroy Structure 3 | . 3 . Lose Combat Pursuer 45 | . . 45 Influence Decreases 203 | . 58 145 Entered New Map 24 | . . 24 Time Decay 109 | . 58 51 Lost Part 70 | . . 70 Squads Dispatched . | . . . Investigation . | . . . Extermination . | . . . Reinforcement . | . . . Assault . | . . . Garrison . | . . . Intercept . | . . . Searches Triggered . | . . . Construction Impeded . | . . . Haulers Reinforced . | . . . Active Scanning Responses . | . . . Cargo Convoy Interrupts . | . . . Stealth | -11 -10 -9 --------- Run | Yrd Mat Mat Distress Signals 1 | . . 1 Communications Jammed . | . . . Distress Signals . | . . . Times Spotted 16 | . 4 12 Peak Tracking Total 9 | . 3 9 Tactical Retreats 1 | . . 1 Traps | -11 -10 -9 ------- Run | Yrd Mat Mat Traps Triggered 1 | . 1 . Indirectly . | . . . Trap Hack Attempts . | . . . Triggered . | . . . Disarmed . | . . . Reprogrammed . | . . . Reused . | . . . Traps Extracted . | . . . Installed . | . . . Triggered . | . . . Machines | -11 -10 -9 ---------- Run | Yrd Mat Mat Machines Disabled . | . . . Max in Single Turn . | . . . Machines Repaired . | . . . Machines Dismantled . | . . . Machines Sabotaged . | . . . Overloaded Fab Kills . | . . . Hacking | -11 -10 -9 --------- Run | Yrd Mat Mat Machines Accessed 4 | . 3 1 Terminals 4 | . 3 1 Fabricators . | . . . Repair Stations . | . . . Recycling Units . | . . . Scanalyzers . | . . . Garrison Access . | . . . Total Hacks 10 | . 7 3 Successful 7 | . 4 3 Failed 3 | . 3 . Catastrophic . | . . . Database Lockouts . | . . . Manual . | . . . Terminals 10 | . 7 3 Fabricators . | . . . Repair Stations . | . . . Recycling Units . | . . . Scanalyzers . | . . . Garrison Access . | . . . Terminal Hacks 7 | . 4 3 Prototype ID Bank 1 | . 1 . Alert Level 1 | . . 1 Locate Traps 2 | . 2 . Reinforcement Status 1 | . . 1 Hauler Manifests 1 | . 1 . Zone Layout 1 | . . 1 Fabricator Hacks . | . . . Repair Station Hacks . | . . . Recycling Unit Hacks . | . . . Scanalyzer . | . . . Garrison Access Hacks . | . . . Unauthorized Hacks . | . . . Terminals . | . . . Fabricators . | . . . Repair Stations . | . . . Recycling Units . | . . . Scanalyzers . | . . . Garrison Access . | . . . Data Cores Recovered . | . . . Used . | . . . Hacking Detections 2 | . 2 . Full Trace Events . | . . . Feedback Events . | . . . Feedback Blocked . | . . . Robot Schematics Acquired . | . . . Robots Built . | . . . Authchips . | . . . Time . | . . . Total Robot Build Rating . | . . . Part Schematics Acquired . | . . . Parts Built . | . . . Authchips . | . . . Time . | . . . Total Part Build Rating . | . . . Part Studies Acquired . | . . . Parts Repaired . | . . . Time . | . . . Parts Recycled . | . . . Recycled Matter . | . . . Retrieved Matter . | . . . Retrieved Components . | . . . Parts Scanalyzed . | . . . Part Schematics Acquired . | . . . Parts Damaged . | . . . Bothacking | -11 -10 -9 ------------ Run | Yrd Mat Mat Used RIF Installer . | . . . Robots Hacked . | . . . Non-combat . | . . . Combat . | . . . Robot Hacks Applied . | . . . Relay Couplers Released . | . . . Fabnet Peak Effective % . | . . . Robots Rewired . | . . . Allies Hacked . | . . . Hacks Repelled . | . . . Allies | -11 -10 -9 -------- Run | Yrd Mat Mat Total Allies . | . . . Largest Group . | . . . Highest-Rated Group . | . . . Highest-Rated Ally . | . . . Total Orders . | . . . Ally Attacks . | . . . Total Damage . | . . . Kills . | . . . Allies Corrupted . | . . . Allies Melted . | . . . Intel | -11 -10 -9 ------- Run | Yrd Mat Mat Active Infowar (turns) . | . . . Robot Analysis Total . | . . . Derelict Logs Recovered . | . . . Drone Launches . | . . . Drone Recoveries . | . . . Exploration | -11 -10 -9 ------------- Run | Yrd Mat Mat Turns Passed 643 | 87 326 230 Spaces Moved 454 | 49 246 159 Core 106 | 49 . 57 Treads . | . . . Legs 348 | . 246 102 Wheels . | . . . Hover . | . . . Flight . | . . . Fastest Speed 50 | 50 120 50 Average Speed 118 | 154 120 106 Slowest Speed 250 | 250 120 190 Overloaded Moves . | . . . Propulsion Burnouts . | . . . Robots Hopped . | . . . Potential Cave-ins . | . . . Cave-ins Triggered . | . . . Exploration Rate (%) 16 | 4 33 13 Regions Visited 2 Branch Regions . Pre-discovered Areas . | . . . Known Exits Taken . | . . . Unknown Exits Taken 2 | 1 1 . Scrap Searched . | . . . Spaces Dug . | . . . Terrain Destroyed 3 | . 3 . Melee . | . . . Projectile . | . . . AOE 3 | . 3 . Terrain Rammed . | . . . Walls Destroyed . | . . . Machines Disabled . | . . . Actions | -11 -10 -9 --------- Run | Yrd Mat Mat Total 521 | 62 269 190 Wait 1 | . 1 . Move 452 | 48 245 159 Hop . | . . . Pick Up 14 | 7 5 2 Fast Attach . | . . . Attach 16 | 6 6 4 Detach 5 | . 5 . Swap 1 | . . 1 Drop 1 | 1 . . Fire 20 | . 5 15 Melee . | . . . Ram 9 | . . 9 Kick 2 | . 2 . Crush . | . . . Escape Stasis . | . . . Rewire . | . . . Trap . | . . . Miscellaneous . | . . . Route ------- -11/Scrapyard -10/Materials (discovered 2 exits: *Mat / [*Min]) -9/Materials History --------- Turn | Location | Event 3 | -11/Scrapyard | Discovered new exit (range 16) 88 | -11/Scrapyard | Entered Materials 222 | -10/Materials | Discovered new exit (range 12) 313 | -10/Materials | Build established: Mutant 395 | -10/Materials | Discovered new exit (range 16) 414 | -10/Materials | Entered another Materials area 414 | -9/Materials | Evolved 2 slots: Power x1, Propulsion x1 588 | -9/Materials | Core integrity fell below 50% 632 | -9/Materials | Lost 8 parts (1p2n1u4w) 637 | -9/Materials | Core integrity fell below 20% 644 | -9/Materials | Destroyed by Y-45 Defender with Heavy Assault Rifle Last Messages --------------- 00586_ K-01 Serf collects debris. 00587_ Lgt. Assault Rifle destroyed. 00589_ K-01 Serf collects debris. 00593_ K-01 Serf destroyed. 00593_ K-01 Serf collects debris. 00601_ Sml. Storage Unit destroyed. 00616_ Acquired Prototype Energy Cannon. 00620_ Acquired Hammer. 00631_ K-01 Serf collects debris. 00635_ Slammed into G-47 Trooper. 00636_ K-01 Serf collects debris. 00637_ Slammed into G-47 Trooper. 00639_ K-01 Serf collects debris. 00639_ Hammer destroyed. 00640_ Slammed into G-47 Trooper. 00640_ Destabilizing: System corrupted (+2). 00641_ Slammed into G-47 Trooper. 00642_ K-01 Serf collects debris. 00642_ Slammed into G-47 Trooper. 00643_ Destabilizing: System corrupted (+1). Map ----- +----------------------------------------------------+ | ???????????????????????????????????? | | ???????????????????????????????????? | | ???????????????????????????????????? | | ???????????????????????????????????? | | ?????????????????????????#####?????? | | ?????????????????????????# #?????? | | ?????????????????????????# #?????? | | ?????????????????????????# #?????? | | ?????????????????????????# ####### | | ?????????????????????????# # ! !# | | ?????????????????????????# # # | | ?????????????????????????# # # | | ###################??????# # ! # | | # # #??????# # # | | # """ # """ #??????# # # | | # "T" # """ ######## k # | | # # """ # # # # | | # # # # # # | | # """ |# # """ # # # | | # """ # " " # """ # # !# | | # """ # "R" # """ # # # | | # # """ # # ####### | | ########+######+######;### #?????? | | = g #?????? | | !!% gY #?????? | | =%=* g@ #?????? | | %#####################+#######?????? | | #???????????# # #????????? | | [#?????####### # #????????? | | ####### # " # """ #????????? | | # """ # """ #????????? | | %= + "???# """ #????????? | | #?????# #????????? | | ####+### #?????########????????? | | ????? !??? ##?????????????????????? | | ?????? #????#??????????????????????? | | ???????#???????????????????????????? | | ???????????????????????????????????? | | ???????????????????????????????????? | | ???????????????????????????????????? | | ???????????????????????????????????? | | ???????????????????????????????????? | | ???????????????????????????????????? | | ???????????????????????????????????? | | ???????????????????????????????????? | | ???????????????????????????????????? | | ???????????????????????????????????? | | ???????????????????????????????????? | | ???????????????????????????????????? | | ???????????????????????????????????? | +----------------------------------------------------+ Best States ------------- Heat Dissipation 28 Energy Generation 10 Energy Capacity 250 Matter Stores 400 Matter Capacity 400 Sight Range 16 Terrain Scan Density 10 Evasion (%) 55 Item Schematics ----------------- None Robot Schematics ------------------ None Fabricated ------------ Nothing Repaired ---------- Nothing Studied --------- None Alien Tech Used ----------------- None Achievements -------------- DATA ERROR: Steam Global Achievement% For Emergencies Only Organ Harvest There's More Where That Came From Challenges ------------ None Game ------ Seed ReactionSniperGreatsword Manual? 0 Play Time 00:13:41 Cumulative 2.5 hours Start 2025.12.28 @ 21:58:12 End 2025.12.28 @ 22:13:42 Sessions 3 Manual Loads 0 Difficulty Rogue Special Mode None Game No. 10 Rogue 10 Adventurer 0 Explorer 0 Win Type - Total 0 Types 0/0/0/0/0/0/0/0/0/0 Lore% 1 Gallery% 7 Achievement% 4 Wizard Run 0 Options --------- Layout 0 ASCII 0 Keyboard 0 Movement Numpad Keybinds 0 Fullscreen 2 Font 24/Proggy Map View 76x50 Zoom Use 0% Tactical HUD 1 Map Filters NONE Filters NONE Steam 1 RUN: 209b55ce-5c83-4f48-a0be-a653b11b0dc4